bitfinex-derivatives/quotes_SOLF0:USTF0_20240818
["timestamp","ask_amount","ask_price","bid_price","bid_amount"]
[1723989594627,0.04800815,144.9,144.89,7.42]
[1723989596233,0.04800815,144.9,144.88,0.05041366]
[1723989597128,7.42,144.89,144.84,1.261]
[1723989598129,3.4509,144.86,144.85,0.05144538]
[1723989598539,4.95134391,144.87,144.85,3.50234538]
[1723989599029,4.95134391,144.87,144.85,0.05144538]
[1723989599737,3.4507,144.86,144.85,0.05144538]
[1723989600138,8.40194391,144.87,144.85,0.05144538]
[1723989600431,4.95134391,144.87,144.85,0.05144538]
[1723989601935,8.40194391,144.87,144.85,0.05144538]
[1723989602439,4.95134391,144.87,144.85,0.05144538]
[1723989602632,0.05134391,144.87,144.85,0.05144538]
[1723989602841,0.05134391,144.87,144.85,3.50224538]
[1723989603138,0.05134391,144.87,144.85,0.05144538]
[1723989603331,0.05134391,144.87,144.85,18.59144538]
[1723989604327,0.05134391,144.87,144.86,3.4507]
[1723989604735,4.9,144.9,144.85,18.59144538]
[1723989604928,21.1229,145.0,144.88,21.9902]
[1723989604929,18.54,144.96,144.88,21.9902]
[1723989605126,4.23483229,144.95,144.88,21.9902]
[1723989605325,4.9,144.95,144.88,21.9902]
[1723989605833,0.05146547,144.93,144.9,0.04547294]
[1723989606032,3.4495,144.91,144.9,0.04547294]
[1723989608943,4.9,144.92,144.9,0.04547294]
[1723989609332,3.4495,144.91,144.9,0.04547294]
[1723989609644,4.9,144.92,144.9,0.04547294]
[1723989609835,3.4495,144.92,144.9,0.04547294]
[1723989610037,4.95146547,144.93,144.9,0.04547294]
[1723989610238,0.05146547,144.93,144.9,0.04547294]
[1723989610444,3.50066547,144.93,144.9,0.04547294]
[1723989611438,3.4495,144.91,144.9,0.04547294]
[1723989611939,3.4495,144.92,144.9,0.04547294]
[1723989612143,0.05146547,144.93,144.9,0.04547294]
[1723989612540,3.4495,144.92,144.9,0.04547294]
[1723989612940,0.05146547,144.93,144.9,0.04547294]
[1723989613140,3.4495,144.92,144.9,0.04547294]
[1723989613639,3.50066547,144.93,144.9,0.04547294]
[1723989614139,0.05146547,144.93,144.9,3.49507294]
[1723989614334,0.05146547,144.93,144.91,18.54]
[1723989614532,0.05146547,144.93,144.91,21.9894]
[1723989616537,9.67821332,144.99,144.92,3.4493]
[1723989616740,4.23487837,144.98,144.93,18.54]
[1723989617049,3.4484,144.96,144.93,21.9889]
[1723989617245,4.9,144.98,144.93,18.54]
[1723989617443,4.9,144.98,144.94,18.54]
[1723989617950,0.05052889,144.97,144.95,0.04819221]
[1723989618840,0.05052889,144.97,144.96,18.54]
[1723989620147,0.05052889,144.97,144.95,18.58819221]
[1723989620643,3.49882889,144.97,144.95,18.58819221]
[1723989621747,0.05052889,144.97,144.95,18.58819221]
[1723989624139,3.4484,144.96,144.95,0.04819221]
[1723989624440,0.05052889,144.97,144.95,0.04819221]
[1723989624644,3.49882889,144.97,144.95,0.04819221]
[1723989624844,0.05052889,144.97,144.95,0.04819221]
[1723989625851,3.4484,144.96,144.95,0.04819221]
[1723989626646,3.49872889,144.97,144.95,0.04819221]
[1723989627748,0.05052889,144.97,144.95,3.49669221]
[1723989628839,0.05052889,144.97,144.96,18.54]
[1723989630652,3.49872889,144.97,144.95,18.58819221]
[1723989631347,0.05052889,144.97,144.95,18.58819221]
[1723989631938,3.49872889,144.97,144.95,18.58819221]
[1723989633948,0.05052889,144.97,144.95,18.58819221]
[1723989634149,0.05052889,144.97,144.96,18.54]
[1723989634356,0.05052889,144.97,144.96,19.885]
[1723989634552,0.05052889,144.97,144.96,8.755]
[1723989637152,4.7966018,145.04,144.96,8.755]
[1723989637355,4.84,145.02,145.0,7.41]
[1723989637547,4.84,145.02,144.98,7.41]
[1723989638251,3.4475,145.0,144.99,0.04533601]
[1723989639051,0.04385466,145.01,144.99,7.45533601]
[1723989639351,4.84,145.07,145.0,7.41]
[1723989639752,15.74816221,145.07,145.0,7.41]
[1723989639954,7.41,145.06,145.0,7.41]
[1723989640152,7.41,145.06,144.97,1.343]
[1723989640351,7.41,145.02,144.96,1.345]
[1723989640560,7.41,145.02,144.96,8.755]
[1723989640757,4.84,145.01,144.96,1.345]
[1723989640959,4.84,145.01,144.93,2.5337]
[1723989640960,7.41,145.0,144.94,7.41]
[1723989641557,7.41,145.0,144.96,0.04813116]
[1723989641558,3.4481,144.97,144.96,0.04813116]
[1723989641856,0.04921402,144.98,144.96,0.04813116]
[1723989642554,3.4481,144.97,144.96,0.04813116]
[1723989643453,3.49721402,144.98,144.96,0.04813116]
[1723989643953,0.04921402,144.98,144.96,0.04813116]
[1723989645458,0.04921402,144.98,144.97,18.54]
[1723989645850,0.04921402,144.98,144.97,21.9881]
[1723989646057,0.04921402,144.98,144.97,18.54]
[1723989647360,0.04921402,144.98,144.97,21.9881]
[1723989647961,0.04921402,144.98,144.96,0.04813116]
[1723989648456,0.04921402,144.98,144.97,3.4481]
[1723989649051,0.04921402,144.98,144.97,21.9881]
[1723989649860,3.447,145.02,144.98,3.4477]
[1723989650057,4.8,145.03,144.98,18.54]
[1723989650460,8.2468,145.03,144.99,3.4476]
[1723989651261,3.4469,145.02,144.99,3.4476]
[1723989651650,3.49615877,145.02,145.0,0.05181701]
[1723989651849,0.04925877,145.02,145.0,0.05181701]
[1723989653259,0.04925877,145.02,145.0,3.49921701]
[1723989654551,0.04925877,145.02,145.01,3.4472]
[1723989654753,52.16657141,145.08,145.01,3.4472]
[1723989654960,56.96657141,145.08,145.01,3.4472]
[1723989655155,3.4464,145.05,145.01,3.4472]
[1723989655760,3.49282035,145.04,145.02,0.04434497]
[1723989656463,0.04632035,145.04,145.02,0.04434497]
[1723989659070,0.04632035,145.04,145.02,3.49124497]
[1723989659469,4.8,145.08,145.03,3.4467]
[1723989659963,4.8,145.08,145.04,21.9863]
[1723989660570,3.4459,145.07,145.04,21.9863]
[1723989660867,3.49585896,145.07,145.04,21.9863]
[1723989661970,0.04995896,145.07,145.05,3.446]
[1723989662264,19.8292,145.14,145.06,18.54]
[1723989662467,4.8,145.13,145.06,18.54]
[1723989662867,1.2892,145.14,145.03,2.6338]
[1723989662868,1.2892,145.14,145.08,18.54]
[1723989663167,3.4448,145.11,145.08,21.9853]
[1723989663572,3.49216669,145.11,145.08,22.02907097]
[1723989664564,3.49216669,145.11,145.08,0.04377097]
[1723989664874,3.49216669,145.11,145.09,7.41]
[1723989666372,3.49216669,145.11,145.1,7.41]
[1723989666571,3.49216669,145.11,145.09,18.52]
[1723989666774,0.04736669,145.11,145.09,18.52]
[1723989667263,0.04736669,145.11,145.1,18.52]
[1723989667874,0.04736669,145.11,145.1,21.965]
[1723989668670,3.4442,145.14,145.1,21.965]
[1723989669063,3.4444,145.13,145.1,21.965]
[1723989669367,3.4444,145.13,145.1,3.445]
[1723989669769,3.49060376,145.13,145.1,3.49631557]
[1723989670170,3.49060376,145.13,145.11,18.52]
[1723989670373,0.04620376,145.13,145.11,21.9648]
[1723989670571,0.04620376,145.13,145.12,18.52]
[1723989671669,4.8,145.16,145.12,18.52]
[1723989671877,4.8,145.19,145.14,18.52]
[1723989672676,4.8,145.21,145.16,18.52]
[1723989672873,0.05192438,145.18,145.16,18.52]
[1723989673672,0.05192438,145.18,145.15,0.05278878]
[1723989673873,18.57192438,145.18,145.09,1.2685]
[1723989674072,3.4452,145.1,145.07,18.52]
[1723989674267,18.52,145.14,145.05,18.52]
[1723989674472,4.8,145.13,145.05,18.52]
[1723989675172,3.4453,145.09,145.08,0.05285706]
[1723989675875,3.4463,145.05,145.01,21.9671]
[1723989676275,4.8,145.07,145.01,18.52]
[1723989676276,3.4465,145.04,145.01,18.52]
[1723989676668,4.8,145.07,145.01,18.52]
[1723989676869,0.04728267,145.05,145.03,0.04532122]
[1723989677481,3.49348267,145.05,145.03,0.04532122]
[1723989677779,0.04728267,145.05,145.03,0.04532122]
[1723989680274,0.04728267,145.05,145.03,22.01202122]
[1723989681179,0.04728267,145.05,145.03,18.56532122]
[1723989681572,3.4465,145.04,145.03,0.04532122]
[1723989682476,3.4479,144.98,144.97,18.52]
[1723989682677,3.4479,144.98,144.95,19.8818]
[1723989682978,8.3079,144.98,144.95,19.8818]
[1723989683782,8.35850955,144.98,144.95,22.01839825]
[1723989683975,3.49850955,144.98,144.95,22.01839825]
[1723989684176,4.86,144.97,144.95,22.01839825]
[1723989684477,4.86,144.97,144.96,3.4483]
[1723989687280,4.86,144.97,144.95,22.01829825]
[1723989688585,0.05060955,144.98,144.96,3.4483]
[1723989688787,4.91060955,144.98,144.96,3.4483]
[1723989689178,8.35850955,144.98,144.95,22.01829825]
[1723989689584,4.91060955,144.98,144.96,3.4483]
[1723989689889,0.05060955,144.98,144.96,3.4483]
[1723989690088,4.91060955,144.98,144.95,22.01829825]
[1723989691090,8.35850955,144.98,144.95,22.01829825]
[1723989691592,3.4482,144.97,144.95,18.56979825]
[1723989692882,4.91060955,144.98,144.86,3.42494283]
[1723989693087,3.46527277,144.97,144.89,18.52]
[1723989693490,3.4495,144.92,144.89,18.52]
[1723989693683,8.3095,144.92,144.89,18.52]
[1723989694085,8.36028898,144.92,144.89,18.56899045]
[1723989694501,0.05078898,144.92,144.91,18.52]
[1723989694901,0.05078898,144.92,144.77,234.33441872]
[1723989695107,4.86,144.93,144.85,18.52]
[1723989695504,3.45,144.9,144.86,3.4507]
[1723989695706,6.1802,144.93,144.85,18.52]
[1723989696010,0.04471406,144.9,144.88,0.05069829]
[1723989696909,3.49461406,144.9,144.88,0.05069829]
[1723989697505,4.90471406,144.9,144.88,0.05069829]
[1723989697703,4.90471406,144.9,144.89,18.52]
[1723989698105,0.04471406,144.9,144.89,21.97]
[1723989698305,1.3202,144.97,144.89,18.52]
[1723989698306,4.86,144.92,144.89,18.52]
[1723989698510,4.86,144.92,144.91,18.52]
[1723989698902,27.56,144.99,144.91,18.52]
[1723989699107,4.86,144.98,144.96,18.52]
[1723989699606,4.90982875,144.98,144.96,22.01555906]
[1723989700314,4.90982875,144.98,144.96,18.56725906]
[1723989700503,4.90982875,144.98,144.96,0.04725906]
[1723989700703,3.4481,144.97,144.96,0.04725906]
[1723989701609,8.35782875,144.98,144.96,0.04725906]
[1723989702010,4.90982875,144.98,144.96,0.04725906]
[1723989702416,3.4481,144.97,144.96,0.04725906]
[1723989702614,4.90982875,144.98,144.91,1.318]
[1723989703008,4.90982875,144.98,144.91,4.7675]
[1723989703410,4.90982875,144.98,144.89,23.17]
[1723989703611,3.4492,144.93,144.92,0.04953686]
[1723989704011,3.4489,144.94,144.92,0.04953686]
[1723989704208,0.04604484,144.95,144.92,0.04953686]
[1723989704612,0.04604484,144.95,144.92,3.49863686]
[1723989707713,3.49464484,144.95,144.92,3.49863686]
[1723989709319,0.04604484,144.95,144.92,3.49863686]
[1723989709522,0.04604484,144.95,144.93,3.4491]
[1723989710117,4.86604484,144.95,144.93,3.4491]
[1723989710320,0.04604484,144.95,144.94,3.4488]
[1723989710708,3.4491,144.93,144.92,0.04953686]
[1723989712016,3.4489,144.94,144.92,0.04953686]
[1723989712715,0.04604484,144.95,144.92,0.04953686]
[1723989714021,0.04604484,144.95,144.94,3.4488]
[1723989714715,1.2501,145.01,144.93,23.17]
[1723989714716,0.222,145.04,144.96,3.4483]
[1723989714919,4.82,145.03,144.96,3.4483]
[1723989715121,4.82,145.03,144.95,23.17]
[1723989715418,3.4479,144.99,144.95,26.6185]
[1723989715717,0.05060942,144.98,144.96,0.04671636]
[1723989715919,4.82,145.04,144.97,23.17]
[1723989716519,3.4469,145.02,144.98,3.4477]
[1723989716714,4.82,145.04,144.97,23.17]
[1723989716919,0.0466959,145.02,144.99,0.05133448]
[1723989717123,0.0466959,145.02,144.99,3.49883448]
[1723989719323,3.4936959,145.02,144.99,0.05133448]
[1723989720924,0.0466959,145.02,144.99,0.05133448]
[1723989722222,3.4474,145.0,144.99,0.05133448]
[1723989733931,18.53,145.01,144.93,1.3563]
[1723989734136,8.18680812,145.0,144.92,1.2627]
[1723989734435,3.4487,144.95,144.92,1.2627]
[1723989735040,3.4950246,144.95,144.92,1.3081723]
[1723989735336,0.0463246,144.95,144.93,18.53]
[1723989737737,0.0463246,144.95,144.93,21.979]
[1723989738134,0.0463246,144.95,144.93,18.53]
[1723989738535,0.0463246,144.95,144.94,3.4488]
[1723989739233,18.53,145.05,144.94,18.53]
[1723989739434,18.53,145.05,144.96,18.53]
[1723989739738,4.7,145.04,144.96,18.53]
[1723989740331,0.05097084,145.01,144.99,0.05249015]
[1723989741835,3.4474,145.0,144.99,0.05249015]
[1723989742238,0.05097084,145.01,145.0,3.4474]
[1723989742436,4.7,145.03,145.0,18.53]
[1723989742636,4.7,145.06,145.0,19.7917]
[1723989743143,3.4466,145.04,145.01,3.447]
[1723989743539,3.49258131,145.04,145.01,3.49793157]
[1723989743939,3.49258131,145.04,145.01,0.05093157]
[1723989744831,3.4468,145.03,145.01,0.05093157]
[1723989745034,0.04598131,145.04,145.01,0.05093157]
[1723989746541,3.4468,145.03,145.01,0.05093157]
[1723989746835,0.04598131,145.04,145.01,0.05093157]
[1723989747433,3.4468,145.03,145.01,0.05093157]
[1723989747635,0.04598131,145.04,145.01,0.05093157]
[1723989748138,3.4469,145.02,145.01,0.05093157]
[1723989753932,3.4468,145.03,145.01,0.05093157]
[1723989754137,4.74598131,145.04,145.01,0.05093157]
[1723989754438,4.74598131,145.04,145.02,18.53]
[1723989755235,4.74598131,145.04,145.02,21.9769]
[1723989758243,8.19248131,145.04,145.02,18.53]
[1723989760144,4.74598131,145.04,145.02,18.53]
[1723989760743,8.19268131,145.04,145.02,18.53]
[1723989760945,4.74598131,145.04,145.01,1.35963157]
[1723989761341,3.4469,145.03,145.01,1.35963157]
[1723989761546,4.74598131,145.04,145.01,1.35963157]
[1723989761743,3.4479,144.98,144.97,1.3243]
[1723989761950,3.4479,144.98,144.95,18.53]
[1723989762243,4.7,144.99,144.95,18.53]
[1723989762443,8.1475,145.0,144.97,18.53]
[1723989762647,3.4475,145.0,144.97,18.53]
[1723989762840,3.4477,144.99,144.97,18.58246998]
[1723989763041,0.04360556,145.0,144.97,0.05246998]
[1723989763443,3.49100556,145.0,144.97,0.05246998]
[1723989763749,3.49100556,145.0,144.97,18.58246998]
[1723989763950,0.04360556,145.0,144.97,22.03046998]
[1723989764647,0.04360556,145.0,144.99,18.53]
[1723989765548,0.04360556,145.0,144.99,21.9776]
[1723989767145,8.1067,145.04,144.99,18.53]
[1723989767448,4.66,145.08,145.03,18.53]
[1723989767653,4.66,145.08,145.05,18.53]
[1723989767852,3.4457,145.07,145.05,18.53]
[1723989768045,4.66,145.08,145.05,18.53]
[1723989768245,0.05191304,145.07,145.05,0.05253187]
[1723989768446,3.446,145.06,145.05,0.05253187]
[1723989770345,3.447,145.02,145.0,2.5163]
[1723989770846,18.53,145.07,145.0,2.5163]
[1723989771049,3.4469,145.03,145.0,2.5163]
[1723989771550,0.05076673,145.03,145.0,0.04936938]
[1723989771852,3.4471,145.02,145.0,0.04936938]
[1723989772048,4.71076673,145.03,145.0,0.04936938]
[1723989772453,3.4472,145.01,145.0,0.04936938]
[1723989773149,3.4481,144.98,144.96,1.2648]
[1723989774251,3.49935931,144.98,144.96,1.31311314]
[1723989774855,3.4481,144.97,144.96,0.04831314]
[1723989775255,0.05125931,144.98,144.96,0.04831314]
[1723989775552,3.49925931,144.98,144.96,0.04831314]
[1723989776153,0.05125931,144.98,144.96,0.04831314]
[1723989777859,3.49915931,144.98,144.96,0.04831314]
[1723989779660,3.4481,144.97,144.96,0.04831314]
[1723989780263,8.15925931,144.98,144.96,0.04831314]
[1723989780465,4.71125931,144.98,144.96,0.04831314]
[1723989781266,8.15925931,144.98,144.96,0.04831314]
[1723989782160,0.05125931,144.98,144.96,3.49661314]
[1723989782760,0.05125931,144.98,144.96,0.04831314]
[1723989783053,3.49925931,144.98,144.96,0.04831314]
[1723989783460,0.05125931,144.98,144.92,3.4491]
[1723989783762,18.58125931,144.98,144.91,1.3163]
[1723989783967,18.58125931,144.98,144.9,3.4496]
[1723989784169,3.4491,144.93,144.9,3.4496]
[1723989784362,3.4491,144.93,144.88,18.53]
[1723989784762,0.04977951,144.92,144.9,18.53]
[1723989786770,0.04977951,144.92,144.9,21.9796]
[1723989787668,3.49917951,144.92,144.89,3.4984577]
[1723989789170,3.49917951,144.92,144.9,3.4498]
[1723989789473,0.04977951,144.92,144.9,3.4498]
[1723989790367,0.04977951,144.92,144.82,18.53]
[1723989790573,23.19,144.94,144.84,18.53]
[1723989790869,4.66,144.94,144.86,18.53]
[1723989791068,4.68,144.93,144.88,18.53]
[1723989791274,3.48636322,144.97,144.88,18.53]
[1723989791472,18.53,144.98,144.9,3.4496]
[1723989791473,0.04762791,144.92,144.9,3.4496]
[1723989791670,0.05026077,144.92,144.9,3.4984998]
[1723989792176,0.05026077,144.92,144.91,3.4495]
[1723989792365,6.8926,145.05,144.9,22.02394977]
[1723989792366,18.53,145.02,144.9,22.02394977]
[1723989792570,3.448,144.98,144.93,18.53]
[1723989792872,4.68,145.01,144.93,18.53]
[1723989793271,4.68,145.01,144.95,3.4486]
[1723989793473,0.04490532,144.98,144.96,0.04415223]
[1723989794671,3.49280532,144.98,144.96,0.04415223]
[1723989794873,0.04490532,144.98,144.96,0.04415223]
[1723989796065,0.04490532,144.98,144.96,18.57415223]
[1723989796470,0.04490532,144.98,144.97,21.9781]
[1723989796670,4.68,145.02,144.97,1.3243]
[1723989796866,4.66,145.01,144.97,1.3243]
[1723989797069,3.4478,144.99,144.97,1.3243]
[1723989797666,3.4992679,144.99,144.97,1.37459219]
[1723989798077,0.0514679,144.99,144.97,1.37459219]
[1723989799866,0.0514679,144.99,144.97,4.82269219]
[1723989800476,0.0514679,144.99,144.97,23.35269219]
[1723989802178,0.0514679,144.99,144.97,19.90459219]
[1723989802375,0.0514679,144.99,144.97,0.05029219]
[1723989802779,3.4479,144.98,144.97,0.05029219]
[1723989804276,3.4491,144.93,144.92,1.3517]
[1723989805778,3.4491,144.93,144.91,0.04979981]
[1723989806474,3.50182423,144.94,144.91,3.49929981]
[1723989806873,0.05292423,144.94,144.91,0.04979981]
[1723989807982,3.4492,144.93,144.91,0.04979981]
[1723989808675,3.4493,144.92,144.91,0.04979981]
[1723989810279,3.4492,144.93,144.91,0.04979981]
[1723989812682,3.4493,144.92,144.91,0.04979981]
[1723989813481,3.4498,144.9,144.87,4.7316]
[1723989814492,3.49821244,144.9,144.87,4.78251222]
[1723989815876,0.04841244,144.9,144.87,1.33201222]
[1723989817387,0.04841244,144.9,144.88,3.4501]
[1723989817785,0.04841244,144.9,144.87,1.33201222]
[1723989818988,0.04841244,144.9,144.88,3.4502]
[1723989819390,0.04841244,144.9,144.87,1.33201222]
[1723989819588,0.04841244,144.9,144.87,0.05091222]
[1723989819888,3.4502,144.89,144.87,0.05091222]
[1723989820488,0.04841244,144.9,144.87,0.05091222]
[1723989821885,0.04841244,144.9,144.88,3.4501]
[1723989823383,3.49821244,144.9,144.87,3.50131222]
[1723989826092,0.04841244,144.9,144.88,3.4502]
[1723989826298,0.04841244,144.9,144.87,18.58091222]
[1723989826797,0.04841244,144.9,144.88,3.4503]
[1723989827195,0.04841244,144.9,144.87,18.58091222]
[1723989828196,4.68,144.93,144.89,18.53]
[1723989828898,4.68,144.93,144.89,19.845]
[1723989829287,0.04635688,144.92,144.91,3.4494]
[1723989830092,0.04635688,144.92,144.9,3.50045709]
[1723989830603,0.04635688,144.92,144.9,0.05075709]
[1723989831899,0.04635688,144.92,144.91,3.4495]
[1723989834694,0.04635688,144.92,144.9,3.50045709]
[1723989835300,3.49565688,144.92,144.9,0.05075709]
[1723989835702,0.04635688,144.92,144.9,3.50055709]
[1723989835903,0.04635688,144.92,144.9,0.05075709]
[1723989836999,0.04635688,144.92,144.91,3.4495]
[1723989838897,0.04635688,144.92,144.9,0.05075709]
[1723989839906,0.04635688,144.92,144.9,3.50045709]
[1723989840103,0.04635688,144.92,144.9,0.05075709]
[1723989840304,0.04635688,144.92,144.91,3.4495]
[1723989840607,22.00591289,144.99,144.91,18.53]
[1723989840799,4.66,144.96,144.92,18.53]
[1723989841005,8.108,144.98,144.94,3.4488]
[1723989841204,8.108,144.98,144.92,18.53]
[1723989841510,4.66,144.98,144.94,18.53]
[1723989841700,21.96153156,145.03,144.95,1.2736]
[1723989841902,0.05228085,144.97,144.95,1.31887081]
[1723989842103,3.4477,144.99,144.96,3.4482]
[1723989842300,0.0503009,144.97,144.96,3.4482]
[1723989842500,0.0503009,144.97,144.95,4.76747081]
[1723989842707,0.0503009,144.97,144.95,0.04527081]
[1723989843209,3.4483,144.96,144.95,0.04527081]
[1723989846617,3.449,144.94,144.91,1.2736]
[1723989847316,23.19,144.96,144.91,1.2736]
[1723989847719,3.4492,144.93,144.92,0.04855755]
[1723989850821,18.53,144.93,144.85,1.3327]
[1723989851329,1.3665,144.94,144.85,3.451]
[1723989851330,3.4502,144.89,144.85,3.451]
[1723989851519,8.1102,144.89,144.85,3.451]
[1723989852025,0.04407566,144.88,144.86,0.04403506]
[1723989852930,3.49437566,144.88,144.86,0.04403506]
[1723989853628,3.4505,144.87,144.86,0.04403506]
[1723989853924,0.04407566,144.88,144.82,3.4515]
[1723989854325,3.4509,144.86,144.82,3.4515]
[1723989854822,3.4509,144.86,144.83,0.04481889]
[1723989855328,3.451,144.85,144.83,0.04481889]
[1723989856328,4.66,144.85,144.83,3.49611889]
[1723989856924,4.66,144.86,144.84,3.451]
[1723989857923,3.49447566,144.88,144.84,3.451]
[1723989857924,0.04407566,144.88,144.84,18.53]
[1723989858130,0.04407566,144.88,144.86,18.53]
[1723989858428,0.04407566,144.88,144.87,3.4505]
[1723989864533,0.04407566,144.88,144.86,3.50016822]
[1723989864829,0.04407566,144.88,144.86,0.04946822]
[1723989865225,0.04407566,144.88,144.87,3.4505]
[1723989865625,0.04407566,144.88,144.86,3.49996822]
[1723989865830,0.04407566,144.88,144.86,0.04946822]
[1723989866334,0.04407566,144.88,144.86,3.50006822]
[1723989866532,0.04407566,144.88,144.86,0.04946822]
[1723989867028,3.49447566,144.88,144.86,0.04946822]
[1723989867330,0.04407566,144.88,144.86,0.04946822]
[1723989868827,0.04407566,144.88,144.86,3.50016822]
[1723989871234,27.58,144.96,144.86,18.57946822]
[1723989871431,27.58,144.96,144.87,1.3186]
[1723989871432,4.66,144.95,144.87,1.3186]
[1723989871633,3.4491,144.93,144.89,3.4499]
[1723989872437,0.04790552,144.92,144.9,0.05059588]
[1723989874834,3.49720552,144.92,144.9,0.05059588]
[1723989876229,3.4495,144.91,144.9,0.05059588]
[1723989879043,3.49730552,144.92,144.9,0.05059588]
[1723989879738,0.04790552,144.92,144.9,0.05059588]
[1723989880552,0.04790552,144.92,144.9,18.58059588]
[1723989880740,0.04790552,144.92,144.91,3.4495]
[1723989882943,4.66,144.97,144.92,3.4492]
[1723989883346,3.4486,144.95,144.92,3.4492]
[1723989884142,3.50021491,144.95,144.92,3.49659835]
[1723989886145,3.449,144.94,144.92,0.04739835]
[1723989889554,0.05161491,144.95,144.92,0.04739835]
[1723989890451,3.4491,144.93,144.92,0.04739835]
[1723989893854,3.4502,144.89,144.8,73.88970897]
[1723989894055,3.4502,144.89,144.82,1.3545]
[1723989894252,3.4502,144.89,144.83,1.26731449]
[1723989894653,3.4502,144.89,144.85,3.4509]
[1723989895057,0.04958722,144.88,144.86,0.04389772]
[1723989895754,0.04958722,144.88,144.86,3.49459772]
[1723989895959,0.04958722,144.88,144.86,0.04389772]
[1723989897254,0.04958722,144.88,144.86,3.49449772]
[1723989898452,0.04958722,144.88,144.87,3.4505]
[1723989898650,18.53,144.93,144.86,18.57389772]
[1723989898651,4.66,144.93,144.86,18.57389772]
[1723989898856,4.66,144.93,144.87,1.3373]
[1723989899559,3.4493,144.92,144.88,3.4501]
[1723989899759,0.04775953,144.91,144.89,0.04487039]
[1723989900257,0.04775953,144.91,144.9,3.4498]
[1723989901753,0.04775953,144.91,144.89,3.49477039]
[1723989902560,0.04775953,144.91,144.89,0.04487039]
[1723989902766,3.4498,144.9,144.89,0.04487039]
[1723989902958,0.04775953,144.91,144.89,0.04487039]
[1723989903357,3.49745953,144.91,144.89,0.04487039]
[1723989903559,0.04775953,144.91,144.89,0.04487039]
[1723989903954,3.49745953,144.91,144.89,0.04487039]
[1723989904361,0.04775953,144.91,144.89,0.04487039]
[1723989904665,3.4498,144.9,144.89,0.04487039]
[1723989905465,0.04775953,144.91,144.89,0.04487039]
[1723989906367,3.49745953,144.91,144.89,0.04487039]
[1723989907061,0.04775953,144.91,144.89,0.04487039]
[1723989907966,3.49735953,144.91,144.89,0.04487039]
[1723989908661,0.04775953,144.91,144.89,0.04487039]
[1723989908856,18.53,144.98,144.89,18.57487039]
[1723989909069,18.53,144.98,144.89,18.53]
[1723989909266,1.3427,144.99,144.92,18.53]
[1723989909473,4.66,144.98,144.94,3.4488]
[1723989909767,4.66,144.98,144.92,19.9022]
[1723989909968,3.4481,144.97,144.93,3.449]
[1723989910164,0.04782199,144.96,144.94,0.05221941]
[1723989911863,0.04782199,144.96,144.95,21.9786]
[1723989912068,4.66,145.01,144.95,18.53]
[1723989912257,3.4475,145.0,144.96,3.4482]
[1723989912965,3.4475,145.0,144.97,3.49257764]
[1723989913168,0.04921075,144.99,144.97,3.49257764]
[1723989914268,0.04921075,144.99,144.98,3.4479]
[1723989915070,0.04921075,144.99,144.97,22.02247764]
[1723989915678,0.04921075,144.99,144.98,3.4479]
[1723989916471,4.66,145.04,144.98,4.6859]
[1723989916670,3.447,145.02,144.98,4.6859]
[1723989917569,0.05152032,145.01,144.99,0.04967955]
[1723989917770,0.05152032,145.01,144.99,3.49707955]
[1723989917967,0.05152032,145.01,144.99,18.57967955]
[1723989918177,4.66,145.05,144.99,21.20007955]
[1723989918366,8.1063,145.05,145.01,3.4472]
[1723989918675,4.66,145.05,145.01,3.4472]
[1723989918874,23.19,145.05,144.99,0.04967955]
[1723989919375,0.04362377,145.03,144.99,0.04967955]
[1723989919577,3.49032377,145.03,144.99,0.04967955]
[1723989920268,3.49032377,145.03,145.0,3.4473]
[1723989920269,0.04362377,145.03,145.0,3.4473]
[1723989920475,0.04362377,145.03,144.99,0.04967955]
[1723989920678,0.04362377,145.03,145.0,3.4472]
[1723989920866,0.04362377,145.03,144.99,0.04967955]
[1723989921866,3.49042377,145.03,144.99,0.04967955]
[1723989922269,0.04362377,145.03,144.99,0.04967955]
[1723989922470,3.4471,145.02,144.99,0.04967955]